bitfinex/quotes_ETHUSD_20250507
["timestamp","ask_amount","ask_price","bid_price","bid_amount"]
[1746615899758,1.27968538,1836.0,1835.9,6.16723]
[1746615899959,3.56863151,1836.0,1835.8,5.532]
[1746615900253,1.27968538,1836.0,1835.8,5.532]
[1746615900579,0.50648538,1835.9,1835.8,5.532]
[1746615900981,0.50648538,1835.9,1835.8,6.3313]
[1746615901785,0.50648538,1835.9,1835.8,24.3313]
[1746615901991,0.50648538,1835.9,1835.8,26.76443]
[1746615902558,0.50648538,1835.9,1835.8,18.0]
[1746615902892,0.81034557,1835.9,1835.8,18.0]
[1746615909879,0.81034557,1835.9,1835.5,6.3179]
[1746615910514,0.81034557,1835.8,1835.5,6.3179]
[1746615911015,0.50648538,1835.7,1835.5,6.3179]
[1746615911189,0.30386019,1835.6,1835.5,5.532]
[1746615911374,0.30386019,1835.6,1835.5,5.531]
[1746615912012,0.80905441,1835.6,1835.5,5.531]
[1746615913322,0.80905441,1835.6,1835.5,23.531]
[1746615914030,0.80905441,1835.6,1835.5,18.0]
[1746615920446,0.80905441,1835.6,1835.5,20.3531]
[1746615920830,0.30386019,1835.6,1835.5,20.3531]
[1746615921209,0.30386019,1835.6,1835.5,21.1189]
[1746615922102,3.8267,1836.1,1835.5,21.1189]
[1746615922751,0.50517647,1836.0,1835.5,21.1189]
[1746615922928,0.30310734,1835.9,1835.6,7.64289]
[1746615923129,0.30310734,1835.9,1835.6,5.531]
[1746615923327,0.50517647,1835.8,1835.6,5.531]
[1746615923643,0.30310734,1835.9,1835.6,5.531]
[1746615924018,0.30310734,1835.8,1835.6,5.531]
[1746615924627,0.30310734,1835.8,1835.7,0.7558]
[1746615924837,0.30310734,1835.8,1835.7,1.38448]
[1746615928336,0.80874606,1835.8,1835.7,1.38448]
[1746615928536,0.80874606,1835.8,1835.7,19.38448]
[1746615929845,0.80874606,1835.8,1835.7,18.62868]
[1746615930017,0.80874606,1835.8,1835.7,18.0]
[1746615938777,0.80874606,1835.8,1835.7,18.7573]
[1746615939078,0.30310734,1835.8,1835.7,18.7573]
[1746615939577,10.2,1836.2,1835.7,18.7573]
[1746615939578,0.80900392,1836.1,1835.7,18.7573]
[1746615939779,0.80900392,1836.1,1835.8,1.87573]
[1746615940080,0.50589658,1836.0,1835.8,1.87573]
[1746615940373,0.30310734,1835.9,1835.8,1.87573]
[1746615940880,0.30310734,1835.9,1835.7,0.7573]
[1746615941285,10.2,1836.2,1835.7,0.7573]
[1746615941659,3.04124613,1836.3,1835.7,0.7573]
[1746615941861,0.50578478,1836.2,1835.7,0.7573]
[1746615942380,0.30343511,1836.1,1835.7,0.7573]
[1746615942546,0.80921989,1836.1,1835.7,0.7573]
[1746615943084,0.50578478,1836.0,1835.7,0.7573]
[1746615943261,0.30343511,1835.9,1835.7,0.7573]
[1746615943991,0.30343511,1835.9,1835.8,18.0]
[1746615944151,0.30343511,1835.9,1835.8,19.87573]
[1746615948487,0.80926148,1835.9,1835.8,19.87573]
[1746615949105,0.30343511,1835.9,1835.8,19.87573]
[1746615949586,0.30343511,1835.9,1835.8,25.40373]
[1746615950187,0.80936282,1835.9,1835.8,25.40373]
[1746615954289,0.80936282,1835.9,1835.8,23.528]
[1746615955897,0.80936282,1835.9,1835.8,18.0]
[1746615956110,0.80936282,1835.9,1835.8,23.527]
[1746615960072,0.80936282,1835.9,1835.8,5.527]
[1746615961303,0.80936282,1835.9,1835.7,5.527]
[1746615961674,0.30343511,1835.8,1835.7,5.527]
[1746615961906,0.80936282,1835.8,1835.7,6.0797]
[1746615962411,0.80936282,1835.8,1835.7,0.5527]
[1746615962607,0.80936282,1835.8,1835.7,5.528]
[1746615963110,0.80936282,1835.8,1835.5,0.83986958]
[1746615963297,0.80936282,1835.8,1835.6,5.528]
[1746615963610,0.30343511,1835.8,1835.7,5.528]
[1746615963992,0.30343511,1835.8,1835.7,6.315]
[1746615964201,0.30343511,1835.8,1835.7,6.9465]
[1746615966403,0.30343511,1835.8,1835.7,24.9465]
[1746615973615,0.30343511,1835.8,1835.7,24.1595]
[1746615974137,0.30343511,1835.8,1835.7,26.44844613]
[1746615974328,0.30343511,1836.2,1835.7,26.44844613]
[1746615974487,0.30343511,1836.2,1835.8,2.64484461]
[1746615975087,0.80984194,1836.1,1835.8,2.64484461]
[1746615975511,0.30343511,1836.1,1835.7,8.44844613]
[1746615975915,3.0,1836.4,1835.7,8.44844613]
[1746615976103,5.28894613,1836.6,1835.7,8.44844613]
[1746615976500,0.50626427,1836.5,1835.7,8.44844613]
[1746615976701,0.80998316,1836.5,1835.7,8.44844613]
[1746615976905,0.50626427,1836.4,1835.8,0.84484461]
[1746615977300,0.30371889,1836.3,1835.8,0.84484461]
[1746615977504,0.50626427,1836.2,1835.8,0.84484461]
[1746615978227,0.30371889,1836.3,1835.8,0.84484461]
[1746615978526,0.30371889,1836.2,1835.8,0.84484461]
[1746615979226,0.30371889,1836.2,1835.9,5.523]
[1746615979434,0.30371889,1836.2,1836.0,5.523]
[1746615979628,0.80973346,1836.1,1836.0,5.523]
[1746615982307,0.30371889,1836.1,1836.0,5.523]
[1746615983128,0.80950484,1836.1,1836.0,5.523]
[1746615985327,0.80950484,1836.1,1836.0,6.15555]
[1746615985499,0.30371889,1836.1,1836.0,6.15555]
[1746615985698,0.7848,1836.4,1836.0,6.15555]
[1746615986530,0.50592633,1836.3,1836.0,6.15555]
[1746615986834,0.30352165,1836.2,1836.0,6.15555]
[1746615987033,0.30352165,1836.2,1836.1,0.615555]
[1746615988833,0.30352165,1836.2,1836.1,1.403055]
[1746615989137,0.806,1836.5,1836.1,1.403055]
[1746615989634,0.80932746,1836.4,1836.1,0.615555]
[1746615990325,0.50581677,1836.3,1836.1,0.615555]
[1746615990737,0.30351069,1836.2,1836.1,0.615555]
[1746615993440,0.30351069,1836.2,1836.1,18.615555]
[1746615996246,0.30351069,1836.2,1836.1,19.378255]
[1746615997818,0.30351069,1836.2,1836.1,18.615555]
[1746615998838,0.80939624,1836.2,1836.1,18.615555]
[1746616000050,1.61289624,1836.2,1836.1,18.615555]
[1746616000217,0.80939624,1836.2,1836.1,18.615555]
[1746616001918,0.30351069,1836.2,1836.1,18.615555]
[1746616005357,0.80969506,1836.2,1836.1,24.132555]
[1746616008253,0.30351069,1836.2,1836.1,24.132555]
[1746616009553,0.80988135,1836.2,1836.1,23.517]
[1746616009858,1.56978135,1836.2,1836.1,18.0]
[1746616013656,1.56978135,1836.2,1835.9,5.517]
[1746616014020,0.50637066,1836.1,1835.9,5.517]
[1746616014638,0.80988135,1836.0,1835.9,5.517]
[1746616014839,0.80988135,1836.0,1835.9,6.0687]
[1746616016561,0.80988135,1836.0,1835.9,5.517]
[1746616016730,0.80988135,1836.0,1835.9,23.517]
[1746616020166,0.80988135,1836.0,1835.9,18.0]
[1746616020569,1.58468135,1836.0,1835.9,18.0]
[1746616021667,0.80988135,1836.0,1835.9,18.0]
[1746616023468,0.80988135,1836.0,1835.8,5.518]
[1746616023835,0.50637066,1835.9,1835.8,5.518]
[1746616024261,0.80988135,1835.9,1835.8,5.518]
[1746616024837,0.30351069,1835.9,1835.8,5.518]
[1746616025036,0.30351069,1835.9,1835.8,6.1579668]
[1746616026282,0.30351069,1835.9,1835.8,18.0]
[1746616026283,3.09227439,1835.9,1835.8,18.0]
[1746616026640,1.63783872,1835.9,1835.8,18.0]
[1746616029158,1.33432803,1835.9,1835.8,18.0]
[1746616029360,1.63753138,1835.9,1835.8,18.0]
[1746616032190,1.63753138,1835.9,1835.6,5.518]
[1746616032596,0.80873138,1835.8,1835.6,5.518]
[1746616033377,0.30320335,1835.8,1835.6,5.518]
[1746616033701,0.30320335,1835.7,1835.6,5.518]
[1746616035273,0.30320335,1835.7,1835.4,0.7872]
[1746616035452,0.8288,1835.9,1835.5,5.513]
[1746616036082,0.50525674,1835.8,1835.5,5.513]
[1746616036578,0.8288,1835.9,1835.5,5.513]
[1746616037081,0.30318496,1835.8,1835.5,5.513]
[1746616037382,0.30318496,1835.8,1835.6,18.0]
[1746616038586,0.30318496,1835.7,1835.6,18.0]
[1746616039484,0.80871257,1835.7,1835.6,18.0]
[1746616039782,0.80871257,1835.7,1835.6,20.3513]
[1746616039997,0.30318496,1835.7,1835.6,23.43184761]
[1746616040155,10.9868,1836.1,1835.6,23.43184761]
[1746616040785,0.80902825,1836.0,1835.6,21.1441]
[1746616041081,0.50565,1835.9,1835.7,2.16887694]
[1746616041488,0.30337825,1836.0,1835.7,2.16887694]
[1746616041706,0.30337825,1835.9,1835.7,2.16887694]
[1746616042082,0.30337825,1835.9,1835.7,0.05446694]
[1746616042285,0.30337825,1835.9,1835.6,0.7928]
[1746616042797,0.30337825,1835.8,1835.6,0.7928]
[1746616043479,0.30337825,1835.8,1835.7,0.05446722]
[1746616043684,0.30337825,1835.8,1835.7,0.86886722]
[1746616045314,1.3723,1836.3,1835.7,0.86886722]
[1746616045821,0.50591554,1836.2,1835.7,0.86886722]
[1746616045984,0.50591554,1836.2,1835.8,18.0]
[1746616046179,0.50591554,1836.2,1835.9,5.513]
[1746616046386,0.50591554,1836.1,1835.9,5.513]
[1746616046610,0.30389794,1836.0,1835.9,5.513]
[1746616046989,0.80981348,1836.0,1835.9,5.513]
[1746616048809,0.80981348,1836.0,1835.9,8.6291]
[1746616050420,0.80981348,1836.0,1835.9,8.68356058]
[1746616050980,0.30389794,1836.0,1835.9,8.68356058]
[1746616051187,0.7671,1836.4,1835.9,8.68356058]
[1746616051644,0.50634351,1836.3,1835.9,6.33226058]
[1746616052192,0.81017532,1836.2,1835.9,6.33226058]
[1746616052534,0.30383181,1836.2,1835.9,6.33226058]
[1746616053630,0.30383181,1836.2,1836.0,18.0]
[1746616055195,0.50626527,1836.3,1836.0,18.0]
[1746616055395,0.50626527,1836.3,1836.0,20.42778]
[1746616055636,0.7671,1836.4,1836.0,20.42778]
[1746616056238,0.30373492,1836.3,1836.0,20.42778]
[1746616056427,0.30373492,1836.3,1836.1,0.87425919]
[1746616056630,0.30373492,1836.3,1836.1,0.8198]
[1746616056795,0.30373492,1836.3,1836.1,1.144558]
[1746616056996,0.30373492,1836.2,1836.1,0.8198]
[1746616057343,0.30373492,1836.2,1836.0,0.7651]
[1746616057725,3.06009233,1836.5,1836.0,0.7651]
[1746616058041,0.50615237,1836.4,1836.0,0.7651]
[1746616058597,0.50615237,1836.3,1836.0,0.7651]
[1746616058809,3.06009233,1836.5,1836.0,0.7651]
[1746616059100,0.50611722,1836.4,1836.0,1.39291]
[1746616059901,0.3036399,1836.3,1836.0,1.39291]
[1746616060935,3.06009233,1836.5,1836.0,1.39291]
[1746616061437,0.50600585,1836.4,1836.0,1.39291]
[1746616061764,3.06009233,1836.5,1836.0,1.39291]
[1746616062138,3.06009233,1836.5,1836.0,19.39291]
[1746616062337,0.30359491,1836.4,1836.1,1.939291]
[1746616063135,0.30359491,1836.3,1836.2,0.05445418]
[1746616063437,0.30359491,1836.3,1836.2,0.81105418]
[1746616063623,0.30359491,1836.3,1836.2,0.7566]
[1746616064529,0.30359491,1836.3,1836.0,1.42941]
[1746616065749,0.30359491,1836.2,1836.0,1.42941]
[1746616066409,0.30359491,1836.4,1836.0,1.42941]
[1746616066810,0.50619461,1836.3,1836.0,1.42941]
[1746616067046,0.50619461,1836.3,1836.1,0.7522]
[1746616067953,2.28679233,1836.6,1836.1,0.7522]
[1746616068646,0.50637414,1836.5,1836.1,0.7522]
[1746616068950,0.30382455,1836.4,1836.1,0.7522]
[1746616069128,0.30382455,1836.4,1836.2,0.05445351]
[1746616069833,0.30382455,1836.4,1836.3,5.506]
[1746616070348,0.81034914,1836.4,1836.3,5.506]
[1746616082473,1.59584914,1836.4,1836.3,5.506]
[1746616084666,0.81034914,1836.4,1836.3,5.506]
[1746616086581,0.81034914,1836.4,1836.2,5.506]
[1746616087087,0.50652459,1836.3,1836.2,5.506]
[1746616087573,0.81034914,1836.3,1836.2,5.506]
[1746616092974,0.81034914,1836.3,1836.2,5.56045393]
[1746616094479,0.81034914,1836.3,1836.2,5.506]
[1746616096888,0.81034914,1836.3,1836.2,5.56045397]
[1746616097184,0.81034914,1836.3,1836.2,5.506]
[1746616098290,2.77018912,1836.3,1836.2,5.499]
[1746616098582,0.81034914,1836.3,1836.2,5.499]
[1746616099682,0.81070052,1836.3,1836.2,5.499]
[1746616101486,2.7705405,1836.3,1835.9,3.67104044]
[1746616101675,2.74583998,1836.2,1836.0,5.5]
[1746616101875,0.81070052,1836.1,1836.0,5.5]
[1746616103581,0.81070052,1836.1,1836.0,6.05544615]
[1746616104581,0.81070052,1836.1,1836.0,6.83294615]
[1746616105690,0.81070052,1836.1,1836.0,5.5]
[1746616108403,0.81070052,1836.1,1836.0,8.28473998]
[1746616108892,2.72163998,1836.6,1836.0,24.3249]
[1746616109467,0.50668627,1836.5,1836.0,24.3249]
[1746616109667,0.30398015,1836.4,1836.0,24.3249]
[1746616109866,0.30398015,1836.4,1836.1,2.43249]
[1746616110491,0.30398015,1836.3,1836.1,2.43249]
[1746616111001,0.30398015,1836.3,1836.0,6.3249]
[1746616111498,2.72163998,1836.6,1836.0,9.99594044]
[1746616111689,1.95983998,1836.5,1836.0,9.99594044]
[1746616111891,0.50654445,1836.4,1836.0,9.99594044]
[1746616112385,0.50654445,1836.3,1836.0,9.99594044]
[1746616112589,0.50654445,1836.3,1836.1,0.99959404]
[1746616112897,0.50654445,1836.3,1836.2,18.0]
[1746616113196,0.81050013,1836.3,1836.2,18.0]
[1746616115957,0.81050013,1836.3,1836.2,23.499]
[1746616119768,0.81050013,1836.3,1836.2,5.499]
[1746616121402,1.59760013,1836.3,1836.2,5.499]
[1746616121702,0.81050013,1836.3,1836.2,5.499]
[1746616141922,2.77034011,1836.3,1836.1,5.493]
[1746616142337,0.81050013,1836.3,1836.1,5.493]
[1746616142626,0.50654445,1836.2,1836.1,5.493]
[1746616142822,0.81050013,1836.2,1836.1,5.493]
[1746616156845,0.81050013,1836.2,1836.1,6.12254]
[1746616157446,0.81050013,1836.2,1836.1,5.493]
[1746616164842,0.81050013,1836.2,1836.1,6.2528]
[1746616168218,0.81050013,1836.2,1836.1,24.2528]
[1746616178652,0.30395568,1836.2,1836.1,24.2528]
[1746616182678,0.81171812,1836.2,1836.1,24.2528]
[1746616182831,0.81171812,1836.2,1836.1,26.67808]
[1746616183566,0.30395568,1836.2,1836.1,26.67808]
[1746616184774,0.30395568,1836.2,1836.1,28.63791998]
[1746616184972,0.8263,1836.8,1836.2,0.7567]
[1746616185176,3.0,1836.7,1836.3,0.05444725]
[1746616185472,0.50760516,1836.6,1836.2,0.7567]
[1746616185973,0.30457165,1836.5,1836.2,0.7567]
[1746616186166,0.81217681,1836.5,1836.2,0.7567]
[1746616186670,0.30457165,1836.4,1836.2,0.7567]
[1746616187171,0.30457165,1836.4,1836.3,18.7853]
[1746616187369,0.30457165,1836.4,1836.3,20.66383]
[1746616187745,3.07761163,1836.4,1836.3,18.0]
[1746616188077,3.58490001,1836.4,1836.3,18.0]
[1746616191778,1.62506003,1836.4,1836.3,18.0]
[1746616193877,0.81186003,1836.4,1836.3,18.0]
[1746616194078,0.81186003,1836.4,1836.1,6.3126]
[1746616194391,0.81186003,1836.4,1836.2,0.68571332]
[1746616194774,0.81186003,1836.3,1836.2,0.68571332]
[1746616194979,0.81186003,1836.3,1836.2,0.63126]
[1746616195290,0.81186003,1836.3,1836.2,0.68571366]
[1746616196909,0.81186003,1836.3,1836.2,0.63126]
[1746616197390,0.81186003,1836.3,1836.2,1.47290942]
[1746616198492,0.30457165,1836.3,1836.2,1.47290942]
[1746616199416,0.30457165,1836.3,1836.2,1.41846]
[1746616199963,0.8036,1836.8,1836.2,1.41846]
[1746616200261,0.50718229,1836.7,1836.2,1.41846]
[1746616200594,3.50718229,1836.7,1836.2,1.41846]
[1746616200811,0.8288,1836.6,1836.2,0.7872]
[1746616201005,1.13308613,1836.6,1836.2,0.7872]
[1746616201186,0.50718229,1836.5,1836.2,0.7872]
[1746616201716,0.50718229,1836.4,1836.2,0.7872]
[1746616202217,0.8288,1836.6,1836.3,5.48]
[1746616202770,0.50709089,1836.5,1836.3,5.48]
[1746616203210,0.30425215,1836.4,1836.3,5.48]
[1746616203518,0.81134304,1836.4,1836.3,5.48]
[1746616208120,0.81134304,1836.4,1836.3,6.10672]
[1746616208280,0.81134304,1836.4,1836.3,6.1611695]
[1746616209516,0.30425215,1836.4,1836.3,6.1611695]
[1746616211112,0.81218163,1836.4,1836.3,6.1611695]
[1746616211504,0.81218163,1836.4,1836.3,6.9112695]
[1746616211710,0.30425215,1836.4,1836.3,6.9112695]
[1746616212884,0.27725215,1836.4,1836.3,6.9112695]
[1746616214526,0.27725215,1836.4,1836.3,9.19794536]
[1746616214830,0.27725215,1836.4,1836.3,9.14349586]
[1746616215030,3.7507,1837.0,1836.4,0.7679]
[1746616215526,0.5086185,1836.9,1836.4,0.7679]
[1746616215820,0.5086185,1836.8,1836.5,0.05444129]
[1746616216515,0.5086185,1836.7,1836.5,0.05444129]
[1746616217023,0.5086185,1836.6,1836.5,0.05444129]
[1746616219039,0.5086185,1836.6,1836.5,0.87304129]
[1746616220415,0.5086185,1836.6,1836.5,18.87304129]
[1746616220593,0.5086185,1836.6,1836.5,20.70590413]
[1746616223115,0.5086185,1836.9,1836.5,20.70590413]
[1746616223322,0.5086185,1836.9,1836.6,0.05444039]
[1746616223619,0.5086185,1836.8,1836.7,5.473]
[1746616225623,0.81393154,1836.8,1836.7,5.473]
[1746616225820,0.81393154,1836.8,1836.7,6.0203]
[1746616226412,0.81393154,1836.8,1836.7,6.7804]
[1746616227928,0.81393154,1836.8,1836.7,6.0203]
[1746616231140,0.81393154,1836.8,1836.7,6.78]
[1746616231708,0.30531304,1836.8,1836.7,6.78]
[1746616232443,0.30531304,1836.8,1836.7,6.0203]
[1746616232949,0.30531304,1836.8,1836.7,24.0203]
[1746616233137,0.81371364,1836.8,1836.7,24.0203]
[1746616233554,0.30531304,1836.8,1836.7,24.0203]
[1746616238348,0.81373613,1836.8,1836.7,24.0203]
[1746616239534,0.81373613,1836.8,1836.7,24.7951]
[1746616239945,0.81373613,1836.8,1836.7,24.0203]
[1746616240859,0.81373613,1836.8,1836.7,27.07617586]
[1746616241413,0.30531304,1836.8,1836.7,24.7895]
[1746616242309,0.50860793,1837.1,1836.7,24.7895]
[1746616242511,0.50860793,1837.1,1836.8,2.47895]
[1746616242911,0.50860793,1837.0,1836.8,2.47895]
[1746616243160,0.50860793,1837.0,1836.8,4.76562586]
[1746616243357,0.50860793,1837.0,1836.9,0.82362814]
[1746616243557,0.7883,1837.5,1836.9,0.82362814]
[1746616243748,0.7883,1837.5,1836.9,1.72362814]
[1746616243948,0.50850273,1837.4,1836.9,1.72362814]
[1746616244155,0.30508245,1837.3,1836.9,1.72362814]
[1746616244447,0.50850273,1837.2,1836.9,1.72362814]
[1746616244863,0.30508245,1837.1,1836.9,1.72362814]
[1746616245557,0.7883,1837.5,1836.9,1.72362814]
[1746616245722,3.07497586,1837.5,1836.9,1.72362814]
[1746616245930,3.07497586,1837.5,1836.9,1.6692]
[1746616246129,0.50815216,1837.4,1836.9,1.6692]
[1746616246555,0.3048923,1837.3,1836.9,1.6692]
[1746616246860,0.3048923,1837.3,1837.0,0.05442508]
[1746616247026,0.3048923,1837.3,1837.1,5.472]
[1746616247226,0.3048923,1837.3,1837.2,0.5472]
[1746616247638,0.3048923,1837.3,1837.2,18.5472]
[1746616247842,0.81287206,1837.3,1837.2,18.5472]
[1746616248123,3.86564792,1837.3,1837.2,18.0]
[1746616248430,7.41564792,1837.3,1837.2,18.0]
[1746616250733,0.777,1837.1,1836.7,5.466]
[1746616251081,0.3048923,1837.0,1836.7,5.52043929]
[1746616251231,0.81287206,1837.0,1836.7,5.52043929]
[1746616251432,0.81287206,1837.0,1836.7,6.43958726]
[1746616251631,0.50797976,1836.9,1836.7,6.43958726]
[1746616251833,0.3048923,1837.0,1836.7,6.43958726]
[1746616252078,0.3048923,1836.9,1836.7,6.43958726]
[1746616252874,0.81288942,1836.8,1836.7,6.43958726]
[1746616253656,0.81288942,1836.8,1836.7,0.91914797]
[1746616253848,0.81288942,1836.8,1836.7,5.467]
[1746616254047,0.81288942,1836.8,1836.7,23.467]
[1746616258266,0.50799712,1836.8,1836.7,23.467]
[1746616258559,0.81284602,1836.8,1836.7,23.467]
[1746616263594,0.81284602,1836.8,1836.7,24.2305]
[1746616263742,0.81284602,1836.8,1836.7,25.89005]
[1746616264147,0.3048489,1836.8,1836.7,25.89005]
[1746616265379,0.81304677,1836.8,1836.7,25.89005]
[1746616267975,0.3048489,1836.8,1836.7,25.89005]
[1746616268480,0.3048489,1836.8,1836.7,26.66815]
[1746616269483,3.8071,1837.3,1836.7,26.66815]
[1746616269778,3.8071,1837.3,1836.8,2.72124986]
[1746616269948,0.5082479,1837.2,1836.8,2.72124986]
[1746616270349,0.81318038,1837.1,1836.8,2.72124986]
[1746616270544,0.30493248,1837.1,1836.8,2.72124986]
[1746616270745,0.30493248,1837.1,1836.8,0.05443486]
[1746616271280,0.30493248,1837.0,1836.8,0.05443486]
[1746616271483,1.05623248,1837.0,1836.7,5.467]
[1746616271684,3.34290834,1837.0,1836.7,5.467]
[1746616272095,0.50810502,1836.9,1836.7,5.467]
[1746616272263,0.30493248,1836.8,1836.7,5.467]
[1746616272449,0.8130375,1836.8,1836.7,5.467]
[1746616273782,0.8130375,1836.8,1836.6,0.00510124]
[1746616273987,0.8130375,1836.8,1836.6,5.47210124]
[1746616273988,1.6090375,1836.8,1836.6,5.47210124]
[1746616274162,0.8130375,1836.7,1836.6,5.47210124]
[1746616274352,3.09971336,1836.7,1836.6,0.00510124]
[1746616274553,3.89571336,1836.7,1836.6,0.00510124]
[1746616275487,4.30047799,1836.7,1836.6,0.00510124]
[1746616276398,4.30096445,1836.7,1836.6,0.00510124]
[1746616277198,4.30096445,1836.7,1836.6,18.00510124]
[1746616278701,4.30096445,1836.7,1836.6,0.00510124]
[1746616280495,4.85096445,1836.7,1836.6,0.00510124]
[1746616281207,5.56428859,1836.7,1836.6,0.00510124]
[1746616282506,15.76428859,1836.7,1836.6,0.00510124]
[1746616296898,14.41828859,1836.7,1836.6,0.00510124]
[1746616298428,11.41828859,1836.7,1836.6,0.00510124]
[1746616298930,14.41828859,1836.7,1836.6,0.00510124]
[1746616299424,14.01352396,1836.7,1836.6,0.00510124]
[1746616299627,11.01352396,1836.7,1836.6,0.00510124]
[1746616301334,0.81352396,1836.7,1836.6,0.00510124]
[1746616302932,0.81352396,1836.7,1836.6,0.63486136]
[1746616303134,0.81352396,1836.7,1836.6,1.45436136]
[1746616304036,0.81389172,1836.7,1836.6,1.45436136]
[1746616304214,0.81389172,1836.7,1836.6,0.82460124]
[1746616310465,3.10056758,1836.7,1836.6,0.00510124]
[1746616313167,3.09994263,1836.7,1836.6,0.00510124]
[1746616314186,4.44224263,1836.7,1836.6,0.00510124]
[1746616315178,3.64994263,1836.7,1836.6,0.00510124]
[1746616316668,4.05462536,1836.7,1836.6,0.00510124]
[1746616319780,0.81326677,1836.7,1836.6,0.00510124]
[1746616322099,3.09994263,1836.7,1836.6,0.00510124]
[1746616324989,0.81326677,1836.7,1836.6,0.79710124]
[1746616327108,0.30493248,1836.7,1836.6,0.79710124]
[1746616327286,0.30493248,1836.7,1836.6,1.69710124]
[1746616327689,0.30493248,1836.7,1836.6,1.75153721]
[1746616327888,2.28667586,1837.2,1836.7,0.8294]
[1746616328092,2.28667586,1837.2,1836.9,0.8294]
[1746616328393,0.50910701,1837.1,1836.9,0.8294]
[1746616328607,0.50910701,1837.0,1836.9,19.46358358]
[1746616328900,0.81444229,1837.0,1836.9,19.46358358]
[1746616330394,0.81444229,1837.0,1836.9,1.46358358]
[1746616334201,3.10111815,1837.0,1836.9,0.8294]
[1746616334503,3.10111815,1837.0,1836.8,5.458]
[1746616335107,0.81444229,1836.9,1836.8,5.458]
[1746616337483,0.81444229,1836.9,1836.8,23.458]
[1746616339000,0.81444229,1836.9,1836.8,5.458]
[1746616339619,0.81444229,1836.9,1836.8,6.2566]
[1746616339784,0.81444229,1836.9,1836.8,6.88226]
[1746616341076,0.30533528,1836.9,1836.8,6.88226]
[1746616341575,0.81370294,1836.9,1836.8,6.2566]
[1746616341780,0.81370294,1836.9,1836.8,5.458]
[1746616344843,0.81370294,1836.9,1836.6,0.80220124]
[1746616345212,0.50836766,1836.8,1836.7,5.452]
[1746616345733,0.81370294,1836.8,1836.7,6.352]
[1746616345897,0.30533528,1836.8,1836.7,6.352]
[1746616346723,0.81389156,1836.8,1836.7,6.352]
[1746616348336,0.81389156,1836.8,1836.7,7.06742012]
[1746616349536,0.81389156,1836.8,1836.7,25.06742012]
[1746616358444,0.81389156,1836.8,1836.7,24.352]
[1746616364867,0.81389156,1836.8,1836.7,25.1432]
[1746616369854,0.81389156,1836.8,1836.7,24.352]
[1746616371766,0.81433378,1836.8,1836.7,24.352]
[1746616377468,0.81433378,1836.8,1836.7,6.352]
[1746616381471,3.92550964,1836.8,1836.7,0.9]
[1746616381767,3.92550964,1836.8,1836.6,0.00510124]
[1746616382067,0.50855628,1836.7,1836.6,0.00510124]
[1746616382856,0.81433378,1836.7,1836.6,0.00510124]
[1746616385561,0.81433378,1836.7,1836.6,18.00510124]
[1746616387972,0.81433378,1836.7,1836.6,0.00510124]
[1746616388377,0.81433378,1836.7,1836.6,0.79450124]
[1746616388583,0.81433378,1836.7,1836.6,1.33981136]
[1746616388952,0.81433378,1836.7,1836.6,2.23981136]
[1746616396291,0.3057775,1836.7,1836.6,2.23981136]
[1746616396485,0.81559316,1836.7,1836.6,2.23981136]
[1746616397698,0.81559316,1836.7,1836.6,1.45041136]
[1746616397999,0.81559316,1836.7,1836.6,19.45041136]
[1746616398704,0.81559316,1836.7,1836.6,20.26491136]
[1746616403902,0.50981566,1836.7,1836.6,20.26491136]
[1746616404224,6.70095922,1837.4,1836.7,0.8126]
[1746616404510,6.70095922,1837.4,1836.8,0.05443529]
[1746616404686,0.50974389,1837.3,1836.9,5.443]
[1746616405012,0.3058561,1837.2,1836.9,5.443]
[1746616405606,0.50974389,1837.1,1836.9,5.443]
[1746616406007,0.3058561,1837.0,1836.9,5.443]
[1746616406216,0.81559999,1837.0,1836.9,5.9873]
[1746616414215,0.81559999,1837.0,1836.9,6.7853]
[1746616414416,0.81559999,1837.0,1836.9,6.83973534]
[1746616414594,0.3058561,1837.0,1836.9,6.7853]
[1746616415395,0.50906155,1837.4,1837.0,0.798]
[1746616415807,0.50906155,1837.3,1837.0,0.798]
[1746616416684,2.28667586,1837.6,1837.0,0.798]
[1746616416880,2.28667586,1837.6,1837.0,1.47653]
[1746616417081,2.28667586,1837.6,1837.1,0.7898]
[1746616417282,0.50892321,1837.5,1837.1,0.7898]
[1746616417485,0.30523918,1837.4,1837.2,0.05442112]
[1746616417710,0.30523918,1837.4,1837.3,6.2488]
[1746616417920,0.30523918,1837.4,1837.3,6.87368]
[1746616421143,0.30523918,1837.4,1837.3,5.442]
[1746616421299,0.81357634,1837.4,1837.3,5.442]
[1746616421704,0.30523918,1837.4,1837.3,5.442]
[1746616424779,0.30523918,1837.4,1837.3,8.55797586]
[1746616424948,0.30523918,1837.4,1837.3,8.61239654]
[1746616425241,0.7952,1837.9,1837.3,8.98696033]
[1746616425422,0.7592,1837.7,1837.3,3.49053965]
[1746616425620,0.7592,1837.7,1837.4,5.441]
[1746616425945,0.50839501,1837.6,1837.4,5.441]
[1746616426168,3.10010018,1837.6,1837.4,5.441]
[1746616426462,0.50839501,1837.5,1837.4,5.441]
[1746616426870,0.50839501,1837.5,1837.1,0.7862]
[1746616427035,0.50839501,1837.5,1837.2,5.441]
[1746616427367,0.81342432,1837.4,1837.2,6.06372]
[1746616428069,0.30502931,1837.3,1837.2,6.06372]
[1746616428269,0.30502931,1837.3,1837.2,24.06372]
[1746616428970,0.29992807,1837.3,1837.2,24.06372]
[1746616431374,0.80852486,1837.3,1837.2,24.06372]
[1746616432673,0.80852486,1837.3,1837.2,23.437]
[1746616438877,1.58332486,1837.3,1837.2,23.437]
[1746616440273,0.80852486,1837.3,1837.2,23.437]
[1746616443652,0.80852486,1837.3,1837.2,5.437]
[1746616445545,0.80852486,1837.3,1836.9,0.7815]
[1746616445749,0.80852486,1837.3,1837.0,5.438]
[1746616445950,0.50859679,1837.2,1837.0,5.438]
[1746616446493,0.29992807,1837.1,1837.0,5.438]
[1746616446697,0.80852486,1837.1,1837.0,5.438]
[1746616450589,0.80852486,1837.1,1837.0,23.438]
[1746616453396,0.80852486,1837.1,1837.0,5.438]
[1746616463017,0.29992807,1837.1,1837.0,5.438]
[1746616463313,0.80914421,1837.1,1837.0,5.438]